[Event "Titled Tuesday Blitz November 07 Late 2023"]
[White "Janaszak, Dawid"]
[Black "Bogaudinov, Rushan"]
[WhiteFideId "1119206"]
[BlackFideId "4129288"]
[WhiteElo "2620"]
[BlackElo "2308"]
[Result "1-0"]
[Round "5"]
[TimeControl "180+1"]
[Date "2023.11.07"]
[WhiteClock "0:00:37"]
[BlackClock "0:00:00"]
[Board "114"]

1. c4 {[%clk 0:03:00]}  Nf6 {[%clk 0:02:59]} 2. Nc3 {[%clk 0:02:57]}  e5 {[%clk 0:02:58]} 3. e3 {[%clk 0:02:54]}  d5 {[%clk 0:02:55]} 4. cxd5 {[%clk 0:02:54]}  Nxd5 {[%clk 0:02:56]} 5. Bc4 {[%clk 0:02:52]}  Nf6 {[%clk 0:02:54]} 6. Qb3 {[%clk 0:02:51]}  Qd7 {[%clk 0:02:44]} 7. Nf3 {[%clk 0:02:51]}  Nc6 {[%clk 0:02:44]} 8. d4 {[%clk 0:02:45]}  exd4 {[%clk 0:02:38]} 9. exd4 {[%clk 0:02:43]}  Na5 {[%clk 0:02:35]} 10. Qb5 {[%clk 0:02:39]}  Qxb5 {[%clk 0:02:26]} 11. Bxb5+ {[%clk 0:02:38]}  Bd7 {[%clk 0:02:23]} 12. Be2 {[%clk 0:02:34]}  Bd6 {[%clk 0:02:13]} 13. Ne5 {[%clk 0:02:32]}  Be6 {[%clk 0:02:00]} 14. O-O {[%clk 0:02:21]}  O-O {[%clk 0:01:59]} 15. Bg5 {[%clk 0:02:15]}  Nd5 {[%clk 0:01:53]} 16. Bd2 {[%clk 0:02:08]}  Nxc3 {[%clk 0:01:45]} 17. Bxc3 {[%clk 0:02:08]}  Nc6 {[%clk 0:01:41]} 18. Nxc6 {[%clk 0:02:04]}  bxc6 {[%clk 0:01:42]} 19. Rfc1 {[%clk 0:01:58]}  Bd5 {[%clk 0:01:42]} 20. g3 {[%clk 0:01:55]}  Rfe8 {[%clk 0:01:41]} 21. Bf1 {[%clk 0:01:55]}  h5 {[%clk 0:01:36]} 22. h4 {[%clk 0:01:54]}  a5 {[%clk 0:01:32]} 23. Rc2 {[%clk 0:01:54]}  a4 {[%clk 0:01:30]} 24. a3 {[%clk 0:01:54]}  g6 {[%clk 0:01:25]} 25. Rac1 {[%clk 0:01:53]}  Re7 {[%clk 0:01:17]} 26. Bd2 {[%clk 0:01:53]}  Rb8 {[%clk 0:01:12]} 27. Bg2 {[%clk 0:01:46]}  Rb3 {[%clk 0:01:03]} 28. Be3 {[%clk 0:01:45]}  Re8 {[%clk 0:00:59]} 29. Bg5 {[%clk 0:01:33]}  Reb8 {[%clk 0:00:57]} 30. Re1 {[%clk 0:01:09]}  Kg7 {[%clk 0:00:52]} 31. Ree2 {[%clk 0:01:07]}  Rd3 {[%clk 0:00:46]} 32. Bxd5 {[%clk 0:01:00]}  cxd5 {[%clk 0:00:44]} 33. Be3 {[%clk 0:01:01]}  Rbb3 {[%clk 0:00:37]} 34. Kg2 {[%clk 0:01:00]}  f6 {[%clk 0:00:28]} 35. Rc6 {[%clk 0:01:00]}  Rd1 {[%clk 0:00:25]} 36. Ra6 {[%clk 0:00:59]}  Rb1 {[%clk 0:00:24]} 37. Rxa4 {[%clk 0:00:57]}  R1xb2 {[%clk 0:00:24]} 38. Rxb2 {[%clk 0:00:58]}  Rxb2 {[%clk 0:00:25]} 39. Ra5 {[%clk 0:00:57]}  Ra2 {[%clk 0:00:24]} 40. a4 {[%clk 0:00:58]}  Kf7 {[%clk 0:00:22]} 41. Kf3 {[%clk 0:00:57]}  Ke6 {[%clk 0:00:22]} 42. Ra8 {[%clk 0:00:56]}  Ra3 {[%clk 0:00:19]} 43. a5 {[%clk 0:00:55]}  c5 {[%clk 0:00:18]} 44. Ke2 {[%clk 0:00:46]}  cxd4 {[%clk 0:00:17]} 45. Bxd4 {[%clk 0:00:45]}  Be5 {[%clk 0:00:18]} 46. Bc5 {[%clk 0:00:45]}  Ra2+ {[%clk 0:00:17]} 47. Kf3 {[%clk 0:00:45]}  d4 {[%clk 0:00:15]} 48. a6 {[%clk 0:00:45]}  Kd5 {[%clk 0:00:15]} 49. Bb4 {[%clk 0:00:43]}  Kc4 {[%clk 0:00:15]} 50. a7 {[%clk 0:00:41]}  Kd3 {[%clk 0:00:10]} 51. Bc5 {[%clk 0:00:39]}  g5 {[%clk 0:00:01]} 52. Rc8 {[%clk 0:00:38]}  g4+ {[%clk 0:00:00]} 53. Kg2 {[%clk 0:00:37]} 1-0


[Site "https://www.chess.com"]

[Event "Titled Tuesday Blitz November 07 Late 2023"]
[White "Zampronha, Wladimir Camilo"]
[Black "Flameboard08"]
[WhiteFideId "2103087"]
[WhiteElo "2307"]
[BlackElo "2591"]
[Result "0-1"]
[Round "5"]
[TimeControl "180+1"]
[Date "2023.11.07"]
[WhiteClock "0:01:14"]
[BlackClock "0:01:16"]
[Board "115"]

1. e4 {[%clk 0:03:00]}  b6 {[%clk 0:02:58]} 2. d4 {[%clk 0:03:00]}  Bb7 {[%clk 0:02:57]} 3. Bd3 {[%clk 0:03:00]}  e6 {[%clk 0:02:58]} 4. Nf3 {[%clk 0:03:00]}  Nf6 {[%clk 0:02:58]} 5. Qe2 {[%clk 0:03:00]}  d5 {[%clk 0:02:58]} 6. e5 {[%clk 0:02:59]}  Ne4 {[%clk 0:02:59]} 7. Nbd2 {[%clk 0:02:56]}  Nxd2 {[%clk 0:02:59]} 8. Bxd2 {[%clk 0:02:56]}  c5 {[%clk 0:03:00]} 9. c3 {[%clk 0:02:55]}  Nc6 {[%clk 0:02:59]} 10. O-O {[%clk 0:02:50]}  Be7 {[%clk 0:02:59]} 11. dxc5 {[%clk 0:02:44]}  bxc5 {[%clk 0:02:59]} 12. c4 {[%clk 0:02:40]}  O-O {[%clk 0:02:59]} 13. Rad1 {[%clk 0:02:28]}  a5 {[%clk 0:02:51]} 14. a3 {[%clk 0:02:27]}  Ba6 {[%clk 0:02:47]} 15. Bf4 {[%clk 0:02:24]}  Rb8 {[%clk 0:02:35]} 16. cxd5 {[%clk 0:02:21]}  Bxd3 {[%clk 0:02:36]} 17. Rxd3 {[%clk 0:02:21]}  exd5 {[%clk 0:02:35]} 18. Rfd1 {[%clk 0:02:16]}  d4 {[%clk 0:02:35]} 19. e6 {[%clk 0:02:10]}  Bd6 {[%clk 0:02:27]} 20. exf7+ {[%clk 0:02:04]}  Rxf7 {[%clk 0:02:26]} 21. Bxd6 {[%clk 0:02:05]}  Qxd6 {[%clk 0:02:26]} 22. Ng5 {[%clk 0:01:54]}  Re7 {[%clk 0:02:20]} 23. Qh5 {[%clk 0:01:47]}  h6 {[%clk 0:02:12]} 24. Nf3 {[%clk 0:01:47]}  Rxb2 {[%clk 0:02:06]} 25. h3 {[%clk 0:01:41]}  c4 {[%clk 0:02:01]} 26. R3d2 {[%clk 0:01:30]}  Rxd2 {[%clk 0:01:58]} 27. Rxd2 {[%clk 0:01:29]}  c3 {[%clk 0:01:56]} 28. Rc2 {[%clk 0:01:27]}  d3 {[%clk 0:01:48]} 29. Rxc3 {[%clk 0:01:26]}  d2 {[%clk 0:01:14]} 30. Nxd2 {[%clk 0:01:25]}  Qxd2 {[%clk 0:01:15]} 31. Rxc6 {[%clk 0:01:18]}  Re1+ {[%clk 0:01:14]} 32. Kh2 {[%clk 0:01:18]}  Qf4+ {[%clk 0:01:15]} 33. g3 {[%clk 0:01:14]}  Qxf2# {[%clk 0:01:16]} 0-1


[Site "https://www.chess.com"]

[Event "Titled Tuesday Blitz November 07 Late 2023"]
[White "Pasti, Aron"]
[Black "Osmonbekov, Talaibek"]
[WhiteFideId "785857"]
[BlackFideId "2017253"]
[WhiteElo "2497"]
[BlackElo "2300"]
[Result "1-0"]
[Round "5"]
[TimeControl "180+1"]
[Date "2023.11.07"]
[WhiteClock "0:02:37"]
[BlackClock "0:00:00"]
[Board "116"]

1. e4 {[%clk 0:02:59]}  c5 {[%clk 0:03:00]} 2. Nf3 {[%clk 0:02:59]}  d6 {[%clk 0:03:00]} 3. d4 {[%clk 0:03:00]}  cxd4 {[%clk 0:03:01]} 4. Nxd4 {[%clk 0:03:00]}  Nf6 {[%clk 0:03:02]} 5. Nc3 {[%clk 0:03:01]}  g6 {[%clk 0:03:03]} 6. Be3 {[%clk 0:03:01]}  Bg7 {[%clk 0:03:03]} 7. f3 {[%clk 0:03:01]}  O-O {[%clk 0:03:03]} 8. Qd2 {[%clk 0:03:02]}  Nc6 {[%clk 0:03:04]} 9. O-O-O {[%clk 0:03:02]}  d5 {[%clk 0:03:04]} 10. exd5 {[%clk 0:03:03]}  Nxd5 {[%clk 0:03:03]} 11. Nxc6 {[%clk 0:03:04]}  bxc6 {[%clk 0:03:04]} 12. Bd4 {[%clk 0:03:04]}  e5 {[%clk 0:02:47]} 13. Bc5 {[%clk 0:03:04]}  Be6 {[%clk 0:02:47]} 14. Ne4 {[%clk 0:03:04]}  h6 {[%clk 0:02:38]} 15. g4 {[%clk 0:03:03]}  Qc7 {[%clk 0:02:32]} 16. Bxf8 {[%clk 0:03:01]}  Rxf8 {[%clk 0:02:26]} 17. Nc5 {[%clk 0:03:01]}  Bc8 {[%clk 0:02:15]} 18. Bc4 {[%clk 0:03:01]}  Rd8 {[%clk 0:01:55]} 19. Bb3 {[%clk 0:02:53]}  Bf8 {[%clk 0:01:29]} 20. Ne4 {[%clk 0:02:49]}  f5 {[%clk 0:01:13]} 21. gxf5 {[%clk 0:02:47]}  gxf5 {[%clk 0:01:11]} 22. Nf6+ {[%clk 0:02:44]}  Kh8 {[%clk 0:01:03]} 23. Rhg1 {[%clk 0:02:44]}  Bg7 {[%clk 0:00:53]} 24. Rg6 {[%clk 0:02:37]}  Bxf6 {[%clk 0:00:16]} 25. Rxh6+ {[%clk 0:02:36]}  Kg7 {[%clk 0:00:14]} 26. Rg1+ {[%clk 0:02:36]}  Kf8 {[%clk 0:00:09]} 27. Rxf6+ {[%clk 0:02:37]}  Nxf6 {[%clk 0:00:09]} 28. Qh6+ {[%clk 0:02:37]}  Ke7 {[%clk 0:00:00]} 29. Rg7+ {[%clk 0:02:37]} 1-0


[Site "https://www.chess.com"]

[Event "Titled Tuesday Blitz November 07 Late 2023"]
[White "Osmak, Yuliia"]
[Black "Mesa Cruz, Juan Carlos"]
[WhiteFideId "14101602"]
[BlackFideId "6423400"]
[WhiteElo "2490"]
[BlackElo "2296"]
[Result "1-0"]
[Round "5"]
[TimeControl "180+1"]
[Date "2023.11.07"]
[WhiteClock "0:00:05"]
[BlackClock "0:00:02"]
[Board "117"]

1. e4 {[%clk 0:03:00]}  c5 {[%clk 0:02:59]} 2. Nf3 {[%clk 0:02:59]}  d6 {[%clk 0:02:57]} 3. Bb5+ {[%clk 0:02:59]}  Nd7 {[%clk 0:02:29]} 4. a4 {[%clk 0:02:56]}  a6 {[%clk 0:02:24]} 5. Be2 {[%clk 0:02:55]}  b6 {[%clk 0:02:22]} 6. O-O {[%clk 0:02:52]}  Bb7 {[%clk 0:02:21]} 7. Nc3 {[%clk 0:02:48]}  Ngf6 {[%clk 0:02:21]} 8. d4 {[%clk 0:02:35]}  cxd4 {[%clk 0:02:16]} 9. Qxd4 {[%clk 0:02:33]}  e5 {[%clk 0:02:14]} 10. Qe3 {[%clk 0:02:26]}  Be7 {[%clk 0:02:13]} 11. Nd2 {[%clk 0:02:22]}  O-O {[%clk 0:02:01]} 12. Nc4 {[%clk 0:02:22]}  b5 {[%clk 0:01:45]} 13. axb5 {[%clk 0:02:15]}  axb5 {[%clk 0:01:46]} 14. Rxa8 {[%clk 0:02:13]}  Qxa8 {[%clk 0:01:45]} 15. Nxb5 {[%clk 0:02:11]}  Bxe4 {[%clk 0:01:45]} 16. Qh3 {[%clk 0:01:49]}  d5 {[%clk 0:01:15]} 17. Ncd6 {[%clk 0:01:38]}  Bxc2 {[%clk 0:01:12]} 18. Bg5 {[%clk 0:01:29]}  Qc6 {[%clk 0:00:57]} 19. Nf5 {[%clk 0:01:26]}  Bc5 {[%clk 0:00:34]} 20. Rc1 {[%clk 0:01:18]}  Ne4 {[%clk 0:00:26]} 21. Be3 {[%clk 0:01:08]}  Nxf2 {[%clk 0:00:16]} 22. Bxf2 {[%clk 0:00:26]}  Bxf5 {[%clk 0:00:14]} 23. Rxc5 {[%clk 0:00:19]}  Qe6 {[%clk 0:00:04]} 24. Qa3 {[%clk 0:00:14]}  Nxc5 {[%clk 0:00:04]} 25. Bxc5 {[%clk 0:00:14]}  Rc8 {[%clk 0:00:05]} 26. Nd6 {[%clk 0:00:14]}  Rd8 {[%clk 0:00:03]} 27. Nxf5 {[%clk 0:00:13]}  Qxf5 {[%clk 0:00:04]} 28. h3 {[%clk 0:00:13]}  h6 {[%clk 0:00:04]} 29. Bg4 {[%clk 0:00:13]}  Qb1+ {[%clk 0:00:03]} 30. Kh2 {[%clk 0:00:13]}  Re8 {[%clk 0:00:04]} 31. Bf2 {[%clk 0:00:12]}  Qc1 {[%clk 0:00:04]} 32. Qa4 {[%clk 0:00:11]}  Rf8 {[%clk 0:00:03]} 33. Bg3 {[%clk 0:00:11]}  g6 {[%clk 0:00:03]} 34. Bxe5 {[%clk 0:00:10]}  h5 {[%clk 0:00:03]} 35. Bf3 {[%clk 0:00:10]}  Qg5 {[%clk 0:00:03]} 36. Qd4 {[%clk 0:00:09]}  Re8 {[%clk 0:00:02]} 37. Bf6 {[%clk 0:00:09]}  Qf5 {[%clk 0:00:02]} 38. Bh8 {[%clk 0:00:09]}  f6 {[%clk 0:00:01]} 39. Bxf6 {[%clk 0:00:09]}  h4 {[%clk 0:00:01]} 40. Bxd5+ {[%clk 0:00:09]}  Kh7 {[%clk 0:00:01]} 41. Bxh4 {[%clk 0:00:09]}  Rd8 {[%clk 0:00:02]} 42. Bxd8 {[%clk 0:00:05]}  Qf7 {[%clk 0:00:01]} 43. Bh4 {[%clk 0:00:05]}  Qd7 {[%clk 0:00:01]} 44. Bg3 {[%clk 0:00:05]}  Qd8 {[%clk 0:00:01]} 45. Qe4 {[%clk 0:00:04]}  Qd7 {[%clk 0:00:01]} 46. Qh4+ {[%clk 0:00:04]}  Kg7 {[%clk 0:00:02]} 47. Be4 {[%clk 0:00:04]}  Qe7 {[%clk 0:00:02]} 48. Qxe7+ {[%clk 0:00:04]}  Kh6 {[%clk 0:00:01]} 49. Qf8+ {[%clk 0:00:04]}  Kg5 {[%clk 0:00:01]} 50. Bf4+ {[%clk 0:00:04]}  Kh5 {[%clk 0:00:01]} 51. g4+ {[%clk 0:00:04]}  Kh4 {[%clk 0:00:02]} 52. Qh6# {[%clk 0:00:05]} 1-0


[Site "https://www.chess.com"]

[Event "Titled Tuesday Blitz November 07 Late 2023"]
[White "Dodaro, Mattia"]
[Black "Su, Dion"]
[WhiteFideId "28583400"]
[BlackFideId "2029731"]
[WhiteElo "2261"]
[BlackElo "2416"]
[Result "0-1"]
[Round "5"]
[TimeControl "180+1"]
[Date "2023.11.07"]
[WhiteClock "0:02:16"]
[BlackClock "0:01:44"]
[Board "121"]

1. d4 {[%clk 0:03:00]}  Nf6 {[%clk 0:02:59]} 2. c4 {[%clk 0:03:00]}  e6 {[%clk 0:03:00]} 3. Nc3 {[%clk 0:03:01]}  Bb4 {[%clk 0:03:00]} 4. Qc2 {[%clk 0:03:00]}  Nc6 {[%clk 0:02:59]} 5. Nf3 {[%clk 0:03:00]}  d6 {[%clk 0:02:59]} 6. Bg5 {[%clk 0:02:58]}  h6 {[%clk 0:02:59]} 7. Bxf6 {[%clk 0:02:57]}  Qxf6 {[%clk 0:02:59]} 8. O-O-O {[%clk 0:02:58]}  O-O {[%clk 0:02:55]} 9. g4 {[%clk 0:02:58]}  Bxc3 {[%clk 0:02:38]} 10. Qxc3 {[%clk 0:02:54]}  e5 {[%clk 0:02:38]} 11. d5 {[%clk 0:02:55]}  Ne7 {[%clk 0:02:38]} 12. Rg1 {[%clk 0:02:55]}  Qf4+ {[%clk 0:02:26]} 13. Qd2 {[%clk 0:02:25]}  Qxc4+ {[%clk 0:02:19]} 14. Kb1 {[%clk 0:02:22]}  Ng6 {[%clk 0:02:09]} 15. h3 {[%clk 0:02:17]}  Qf4 {[%clk 0:01:47]} 16. e3 {[%clk 0:02:16]}  Qxf3 {[%clk 0:01:44]} 0-1


[Site "https://www.chess.com"]

[Event "Titled Tuesday Blitz November 07 Late 2023"]
[White "Novikova, Galina"]
[Black "Broca Jimenez, Fernando"]
[WhiteFideId "4157095"]
[BlackFideId "5104742"]
[WhiteElo "2414"]
[BlackElo "2254"]
[Result "1-0"]
[Round "5"]
[TimeControl "180+1"]
[Date "2023.11.07"]
[WhiteClock "0:00:57"]
[BlackClock "0:00:00"]
[Board "122"]

1. e4 {[%clk 0:03:00]}  c5 {[%clk 0:02:57]} 2. Nf3 {[%clk 0:03:00]}  g6 {[%clk 0:02:54]} 3. d4 {[%clk 0:03:00]}  cxd4 {[%clk 0:02:55]} 4. Nxd4 {[%clk 0:03:00]}  Nc6 {[%clk 0:02:54]} 5. Nc3 {[%clk 0:03:01]}  Nf6 {[%clk 0:02:51]} 6. Be3 {[%clk 0:03:01]}  Bg7 {[%clk 0:02:47]} 7. Nxc6 {[%clk 0:03:01]}  bxc6 {[%clk 0:02:46]} 8. e5 {[%clk 0:03:02]}  Ng8 {[%clk 0:02:46]} 9. Bd4 {[%clk 0:03:02]}  Nh6 {[%clk 0:02:42]} 10. e6 {[%clk 0:03:02]}  Bxd4 {[%clk 0:02:39]} 11. Qxd4 {[%clk 0:03:03]}  O-O {[%clk 0:02:39]} 12. exd7 {[%clk 0:03:03]}  Qxd7 {[%clk 0:02:38]} 13. Qxd7 {[%clk 0:03:04]}  Bxd7 {[%clk 0:02:37]} 14. O-O-O {[%clk 0:03:05]}  Be6 {[%clk 0:02:28]} 15. Be2 {[%clk 0:03:05]}  Ng4 {[%clk 0:02:18]} 16. Rd4 {[%clk 0:03:05]}  Nf6 {[%clk 0:01:51]} 17. Bf3 {[%clk 0:03:01]}  Rac8 {[%clk 0:01:29]} 18. Rhd1 {[%clk 0:03:01]}  h5 {[%clk 0:01:14]} 19. h3 {[%clk 0:03:00]}  Kg7 {[%clk 0:01:04]} 20. a3 {[%clk 0:03:00]}  Rc7 {[%clk 0:00:47]} 21. g4 {[%clk 0:02:40]}  hxg4 {[%clk 0:00:36]} 22. hxg4 {[%clk 0:02:41]}  Rfc8 {[%clk 0:00:18]} 23. g5 {[%clk 0:02:38]}  Nd7 {[%clk 0:00:15]} 24. Ne4 {[%clk 0:02:33]}  Ne5 {[%clk 0:00:15]} 25. Be2 {[%clk 0:02:28]}  Bd5 {[%clk 0:00:13]} 26. Nc5 {[%clk 0:02:27]}  Nf3 {[%clk 0:00:09]} 27. Bxf3 {[%clk 0:02:24]}  Bxf3 {[%clk 0:00:10]} 28. Re1 {[%clk 0:02:25]}  e6 {[%clk 0:00:08]} 29. Re3 {[%clk 0:02:20]}  Bh5 {[%clk 0:00:07]} 30. b4 {[%clk 0:02:17]}  Rb8 {[%clk 0:00:06]} 31. Na6 {[%clk 0:02:16]}  Rcb7 {[%clk 0:00:06]} 32. Nxb8 {[%clk 0:02:16]}  Rxb8 {[%clk 0:00:07]} 33. Rd7 {[%clk 0:02:16]}  a5 {[%clk 0:00:06]} 34. Rxe6 {[%clk 0:02:16]}  axb4 {[%clk 0:00:06]} 35. axb4 {[%clk 0:02:16]}  Rxb4 {[%clk 0:00:05]} 36. Ree7 {[%clk 0:02:17]}  Rf4 {[%clk 0:00:05]} 37. Rd2 {[%clk 0:02:12]}  Bf3 {[%clk 0:00:06]} 38. Kb2 {[%clk 0:02:04]}  Bd5 {[%clk 0:00:06]} 39. Re5 {[%clk 0:01:53]}  Rf3 {[%clk 0:00:03]} 40. Kc1 {[%clk 0:01:37]}  Rf4 {[%clk 0:00:04]} 41. Kd1 {[%clk 0:01:37]}  Ra4 {[%clk 0:00:04]} 42. Ke2 {[%clk 0:01:34]}  Rf4 {[%clk 0:00:04]} 43. Ke3 {[%clk 0:01:20]}  Rf3+ {[%clk 0:00:03]} 44. Ke2 {[%clk 0:01:21]}  Rf4 {[%clk 0:00:04]} 45. Rexd5 {[%clk 0:01:12]}  cxd5 {[%clk 0:00:05]} 46. Rxd5 {[%clk 0:01:12]}  Rc4 {[%clk 0:00:05]} 47. Rd2 {[%clk 0:01:09]}  Kf8 {[%clk 0:00:05]} 48. Kd3 {[%clk 0:01:04]}  Rg4 {[%clk 0:00:05]} 49. c4 {[%clk 0:00:55]}  Rxg5 {[%clk 0:00:05]} 50. Re2 {[%clk 0:00:56]}  Rc5 {[%clk 0:00:05]} 51. Kd4 {[%clk 0:00:56]}  Rc8 {[%clk 0:00:00]} 52. c5 {[%clk 0:00:57]} 1-0


[Site "https://www.chess.com"]

[Event "Titled Tuesday Blitz November 07 Late 2023"]
[White "Cooper, Aaron"]
[Black "Carrasco Miranda, Andres"]
[WhiteFideId "2634945"]
[BlackFideId "3405990"]
[WhiteElo "2250"]
[BlackElo "2409"]
[Result "0-1"]
[Round "5"]
[TimeControl "180+1"]
[Date "2023.11.07"]
[WhiteClock "0:00:04"]
[BlackClock "0:00:09"]
[Board "123"]

1. e4 {[%clk 0:03:00]}  e5 {[%clk 0:02:57]} 2. f4 {[%clk 0:03:00]}  d5 {[%clk 0:02:56]} 3. exd5 {[%clk 0:03:01]}  exf4 {[%clk 0:02:55]} 4. Nf3 {[%clk 0:03:01]}  Nf6 {[%clk 0:02:55]} 5. Bc4 {[%clk 0:02:59]}  Bd6 {[%clk 0:02:53]} 6. O-O {[%clk 0:02:55]}  O-O {[%clk 0:02:53]} 7. d4 {[%clk 0:02:51]}  Bg4 {[%clk 0:02:52]} 8. Nc3 {[%clk 0:02:48]}  Re8 {[%clk 0:02:45]} 9. h3 {[%clk 0:02:41]}  Bh5 {[%clk 0:02:43]} 10. Ne2 {[%clk 0:02:06]}  c6 {[%clk 0:02:03]} 11. dxc6 {[%clk 0:02:03]}  Nxc6 {[%clk 0:02:04]} 12. c3 {[%clk 0:01:59]}  Qc7 {[%clk 0:01:40]} 13. Bd3 {[%clk 0:01:32]}  Rad8 {[%clk 0:01:35]} 14. Bd2 {[%clk 0:01:01]}  Ne4 {[%clk 0:01:31]} 15. Be1 {[%clk 0:00:50]}  Ng3 {[%clk 0:01:17]} 16. Nxg3 {[%clk 0:00:48]}  fxg3 {[%clk 0:01:18]} 17. Qc2 {[%clk 0:00:48]}  Bg6 {[%clk 0:01:16]} 18. Ng5 {[%clk 0:00:37]}  Bf4 {[%clk 0:01:01]} 19. Nxh7 {[%clk 0:00:15]}  Nxd4 {[%clk 0:00:38]} 20. Qb1 {[%clk 0:00:05]}  Kxh7 {[%clk 0:00:18]} 21. Bxg6+ {[%clk 0:00:04]}  fxg6 {[%clk 0:00:18]} 22. cxd4 {[%clk 0:00:05]}  Rxd4 {[%clk 0:00:16]} 23. Bc3 {[%clk 0:00:05]}  Rde4 {[%clk 0:00:15]} 24. Qd1 {[%clk 0:00:04]}  Qc8 {[%clk 0:00:13]} 25. Qf3 {[%clk 0:00:04]}  Qf5 {[%clk 0:00:11]} 26. Rad1 {[%clk 0:00:04]}  R8e7 {[%clk 0:00:10]} 27. Kh1 {[%clk 0:00:04]}  g5 {[%clk 0:00:09]} 28. Qd3 {[%clk 0:00:04]}  g4 {[%clk 0:00:09]} 29. hxg4 {[%clk 0:00:03]}  Qxg4 {[%clk 0:00:09]} 30. Qf3 {[%clk 0:00:03]}  Qh4+ {[%clk 0:00:09]} 31. Kg1 {[%clk 0:00:04]}  Qh2# {[%clk 0:00:09]} 0-1


[Site "https://www.chess.com"]

[Event "Titled Tuesday Blitz November 07 Late 2023"]
[White "Bullen, Alex"]
[Black "Martins, Vinicius Tine"]
[WhiteFideId "1801627"]
[BlackFideId "2112884"]
[WhiteElo "2225"]
[BlackElo "2401"]
[Result "1/2-1/2"]
[Round "5"]
[TimeControl "180+1"]
[Date "2023.11.07"]
[WhiteClock "0:00:40"]
[BlackClock "0:00:14"]
[Board "124"]

1. d4 {[%clk 0:03:00]}  d5 {[%clk 0:02:56]} 2. Bf4 {[%clk 0:02:59]}  c5 {[%clk 0:02:49]} 3. e3 {[%clk 0:02:59]}  Nc6 {[%clk 0:02:46]} 4. c3 {[%clk 0:02:59]}  cxd4 {[%clk 0:02:44]} 5. exd4 {[%clk 0:02:58]}  Bf5 {[%clk 0:02:44]} 6. Nf3 {[%clk 0:02:55]}  e6 {[%clk 0:02:41]} 7. Bd3 {[%clk 0:02:55]}  Bxd3 {[%clk 0:02:39]} 8. Qxd3 {[%clk 0:02:56]}  Bd6 {[%clk 0:02:39]} 9. Bxd6 {[%clk 0:02:54]}  Qxd6 {[%clk 0:02:39]} 10. Nbd2 {[%clk 0:02:54]}  Nf6 {[%clk 0:02:37]} 11. O-O {[%clk 0:02:54]}  O-O {[%clk 0:02:37]} 12. Rfe1 {[%clk 0:02:55]}  Nd7 {[%clk 0:02:32]} 13. Ng5 {[%clk 0:02:49]}  Nf6 {[%clk 0:02:20]} 14. Re3 {[%clk 0:02:45]}  e5 {[%clk 0:02:15]} 15. dxe5 {[%clk 0:02:36]}  Nxe5 {[%clk 0:02:13]} 16. Qf5 {[%clk 0:02:35]}  Neg4 {[%clk 0:01:45]} 17. Rh3 {[%clk 0:02:15]}  h6 {[%clk 0:01:40]} 18. Nh7 {[%clk 0:01:57]}  Nxh7 {[%clk 0:01:19]} 19. Qxg4 {[%clk 0:01:57]}  Nf6 {[%clk 0:01:17]} 20. Qg3 {[%clk 0:01:53]}  Qxg3 {[%clk 0:01:05]} 21. Rxg3 {[%clk 0:01:54]}  Rfe8 {[%clk 0:01:01]} 22. Kf1 {[%clk 0:01:47]}  Rad8 {[%clk 0:00:57]} 23. Nb3 {[%clk 0:01:43]}  Ne4 {[%clk 0:00:48]} 24. Rd3 {[%clk 0:01:41]}  Nf6 {[%clk 0:00:40]} 25. Rad1 {[%clk 0:01:40]}  Rc8 {[%clk 0:00:40]} 26. Nd4 {[%clk 0:01:32]}  a6 {[%clk 0:00:35]} 27. Nf5 {[%clk 0:01:32]}  Re6 {[%clk 0:00:35]} 28. Ne3 {[%clk 0:01:27]}  Rb6 {[%clk 0:00:17]} 29. b3 {[%clk 0:01:12]}  Rc5 {[%clk 0:00:17]} 30. f3 {[%clk 0:01:01]}  Rbc6 {[%clk 0:00:16]} 31. Nxd5 {[%clk 0:00:50]}  Nxd5 {[%clk 0:00:15]} 32. Rxd5 {[%clk 0:00:51]}  Rxc3 {[%clk 0:00:15]} 33. Rd8+ {[%clk 0:00:47]}  Kh7 {[%clk 0:00:15]} 34. R8d7 {[%clk 0:00:48]}  Rc7 {[%clk 0:00:15]} 35. Rxc7 {[%clk 0:00:44]}  Rxc7 {[%clk 0:00:16]} 36. Rd2 {[%clk 0:00:40]}  f6 {[%clk 0:00:14]} 1/2-1/2


[Site "https://www.chess.com"]